[Event "Nové Hrady - Rapid A"]
[Site "Nové Hrady, Czech Republic"]
[Date "2023.08.12"]
[Round "2.5"]
[White "Steinbauer, Sebastián"]
[Black "Martinkovič, Adam"]
[Result "1-0"]
[TimeControl "2x20min+5s"]
[WhiteFideId "399272"]
[BlackFideId "23728019"]
[WhiteElo "1833"]
[BlackElo "1808"]

1. e4 {[%clk 00:20:08]} {[%emt 00:00:02]} c6 {[%clk 00:20:10]} 2. d4 {[%clk
00:20:12]} d5 {[%clk 00:20:13]} 3. e5 {[%clk 00:20:16]} c5 {[%clk 00:20:17]} 4.
dxc5 {[%clk 00:20:17]} {[%emt 00:00:09]} Nd7 {[%clk 00:19:48]} {[%emt
00:00:34]} 5. Bb5 {[%clk 00:18:04]} {[%emt 00:02:18]} Qa5+ {[%clk 00:19:05]}
{[%emt 00:00:48]} 6. Nc3 {[%clk 00:18:08]} {[%emt 00:00:02]} e6 {[%clk
00:19:08]} 7. c6 {[%clk 00:17:55]} {[%emt 00:00:18]} bxc6 {[%clk 00:19:08]}
{[%emt 00:00:05]} 8. Bxc6 {[%clk 00:17:57]} {[%emt 00:00:03]} Bb4 {[%clk
00:18:50]} {[%emt 00:00:23]} 9. Bxa8 {[%clk 00:16:52]} {[%emt 00:01:09]} Bxc3+
{[%clk 00:18:48]} {[%emt 00:00:07]} 10. bxc3 {[%clk 00:16:56]} {[%emt
00:00:02]} Qxc3+ {[%clk 00:18:51]} {[%emt 00:00:02]} 11. Bd2 {[%clk 00:17:00]}
Qxe5+ {[%clk 00:18:54]} {[%emt 00:00:02]} 12. Ne2 {[%clk 00:17:03]} Ba6 {[%clk
00:18:27]} {[%emt 00:00:33]} 13. Be3 {[%clk 00:16:08]} {[%emt 00:01:01]} Bxe2
{[%clk 00:17:46]} {[%emt 00:00:45]} 14. Kxe2 {[%clk 00:16:11]} {[%emt
00:00:02]} Ne7 {[%clk 00:17:26]} {[%emt 00:00:25]} 15. Qd4 {[%clk 00:15:40]}
{[%emt 00:00:37]} Qc7 {[%clk 00:17:03]} {[%emt 00:00:27]} 16. Rhc1 {[%clk
00:14:26]} {[%emt 00:01:20]} O-O {[%clk 00:16:53]} {[%emt 00:00:15]} 17. Qxa7
{[%clk 00:14:22]} {[%emt 00:00:09]} Qc4+ {[%clk 00:16:45]} {[%emt 00:00:13]} 18.
Ke1 {[%clk 00:14:26]} {[%emt 00:00:02]} Rd8 {[%clk 00:14:11]} {[%emt 00:02:38]}
19. Bb7 {[%clk 00:14:19]} {[%emt 00:00:13]} Nf5 {[%clk 00:13:41]} {[%emt
00:00:33]} 20. Ba6 {[%clk 00:14:11]} {[%emt 00:00:14]} Qc3+ {[%clk 00:13:34]}
{[%emt 00:00:11]} 21. Kf1 {[%clk 00:14:10]} {[%emt 00:00:07]} Nxe3+ {[%clk
00:13:26]} {[%emt 00:00:13]} 22. Qxe3 {[%clk 00:14:11]} {[%emt 00:00:04]} Qc7
{[%clk 00:13:02]} {[%emt 00:00:28]} 23. Kg1 {[%clk 00:14:13]} {[%emt 00:00:04]}
Nf6 {[%clk 00:12:49]} {[%emt 00:00:18]} 24. Bd3 {[%clk 00:14:09]} {[%emt
00:00:10]} e5 {[%clk 00:12:18]} {[%emt 00:00:36]} 25. f3 {[%clk 00:13:55]}
{[%emt 00:00:18]} e4 {[%clk 00:11:26]} {[%emt 00:00:56]} 26. fxe4 {[%clk
00:13:59]} {[%emt 00:00:02]} dxe4 {[%clk 00:11:30]} {[%emt 00:00:02]} 27. Be2
{[%clk 00:13:53]} {[%emt 00:00:11]} Ra8 {[%clk 00:10:40]} {[%emt 00:00:53]} 28.
a4 {[%clk 00:13:49]} {[%emt 00:00:09]} Re8 {[%clk 00:10:05]} {[%emt 00:00:41]}
29. c4 {[%clk 00:13:43]} {[%emt 00:00:11]} Rd8 {[%clk 00:09:09]} {[%emt
00:01:00]} 30. a5 {[%clk 00:13:41]} {[%emt 00:00:08]} Rd3 {[%clk 00:07:26]}
{[%emt 00:01:47]} 31. Bxd3 {[%clk 00:13:28]} {[%emt 00:00:18]} exd3 {[%clk
00:07:29]} {[%emt 00:00:02]} 32. Qxd3 {[%clk 00:13:31]} {[%emt 00:00:03]} Ng4
{[%clk 00:07:28]} {[%emt 00:00:06]} 33. Qg3 {[%clk 00:12:37]} {[%emt 00:00:58]}
Qc5+ {[%clk 00:07:20]} {[%emt 00:00:14]} 34. Kh1 {[%clk 00:12:31]} {[%emt
00:00:12]} Nf2+ {[%clk 00:07:17]} {[%emt 00:00:07]} 35. Qxf2 {[%clk 00:12:34]}
Qxf2 {[%clk 00:07:17]} {[%emt 00:00:07]} 36. a6 {[%clk 00:12:38]} Qa7 {[%clk
00:07:19]} {[%emt 00:00:03]} 37. c5 {[%clk 00:12:42]} h5 {[%clk 00:07:12]}
{[%emt 00:00:13]} 38. c6 {[%clk 00:12:46]} {[%emt 00:00:02]} h4 {[%clk
00:07:10]} {[%emt 00:00:06]} 39. c7 {[%clk 00:12:49]} g5 {[%clk 00:06:53]}
{[%emt 00:00:24]} 40. c8=Q+ {[%clk 00:12:52]} {[%emt 00:00:02]} Kg7 {[%clk
00:06:54]} {[%emt 00:00:03]} 41. Qc3+ {[%clk 00:12:54]} {[%emt 00:00:04]} Kg6
{[%clk 00:06:41]} {[%emt 00:00:17]} 42. Qc5 {[%clk 00:12:48]} {[%emt 00:00:12]}
Qb8 {[%clk 00:06:16]} {[%emt 00:00:30]} 43. a7 {[%clk 00:12:51]} {[%emt
00:00:03]} Qxh2+ {[%clk 00:05:34]} {[%emt 00:00:46]} 44. Kxh2 {[%clk 00:12:50]}
{[%emt 00:00:07]} 1-0

[Event "Nové Hrady - Rapid A"]
[Site "Nové Hrady, Czech Republic"]
[Date "2023.08.12"]
[Round "2.6"]
[White "Garabik, Marek"]
[Black "Hokr, Matyáš"]
[Result "1-0"]
[TimeControl "2x20min+5s"]
[WhiteFideId "23717742"]
[BlackFideId "23734663"]
[WhiteElo "1767"]
[BlackElo "1228"]

1. e4 {[%clk 00:20:07]} {[%emt 00:00:04]} e5 {[%clk 00:19:49]} {[%emt
00:00:21]} 2. Nf3 {[%clk 00:20:09]} {[%emt 00:00:03]} Nc6 {[%clk 00:19:53]}
{[%emt 00:00:02]} 3. Bc4 {[%clk 00:20:11]} {[%emt 00:00:02]} Nf6 {[%clk
00:19:55]} {[%emt 00:00:03]} 4. d3 {[%clk 00:20:15]} {[%emt 00:00:01]} h6
{[%clk 00:19:58]} {[%emt 00:00:02]} 5. O-O {[%clk 00:19:55]} {[%emt 00:00:25]}
Bc5 {[%clk 00:20:00]} {[%emt 00:00:03]} 6. Re1 {[%clk 00:19:55]} {[%emt
00:00:05]} d6 {[%clk 00:19:44]} {[%emt 00:00:22]} 7. c3 {[%clk 00:19:59]} Be6
{[%clk 00:19:40]} {[%emt 00:00:02]} 8. a4 {[%clk 00:19:52]} {[%emt 00:00:19]}
Bxc4 {[%clk 00:19:37]} {[%emt 00:00:07]} 9. dxc4 {[%clk 00:19:56]} {[%emt
00:00:01]} a5 {[%clk 00:19:33]} {[%emt 00:00:10]} 10. Be3 {[%clk 00:19:57]}
{[%emt 00:00:03]} Bxe3 {[%clk 00:19:22]} {[%emt 00:00:16]} 11. Rxe3 {[%clk
00:19:57]} {[%emt 00:00:05]} O-O {[%clk 00:19:24]} {[%emt 00:00:03]} 12. Na3
{[%clk 00:19:28]} {[%emt 00:00:34]} Ne7 {[%clk 00:19:01]} {[%emt 00:00:27]} 13.
b4 {[%clk 00:18:27]} {[%emt 00:01:07]} Ng6 {[%clk 00:18:21]} {[%emt 00:00:45]}
14. g3 {[%clk 00:18:06]} {[%emt 00:00:26]} Ng4 {[%clk 00:17:57]} {[%emt
00:00:28]} 15. Rd3 {[%clk 00:17:27]} {[%emt 00:00:45]} axb4 {[%clk 00:17:47]}
{[%emt 00:00:15]} 16. cxb4 {[%clk 00:17:29]} {[%emt 00:00:02]} f5 {[%clk
00:17:50]} {[%emt 00:00:02]} 17. exf5 {[%clk 00:16:26]} {[%emt 00:01:08]} Rxf5
{[%clk 00:17:53]} {[%emt 00:00:02]} 18. h3 {[%clk 00:16:13]} {[%emt 00:00:19]}
Nxf2 {[%clk 00:17:33]} {[%emt 00:00:26]} 19. Kxf2 {[%clk 00:16:07]} {[%emt
00:00:10]} e4 {[%clk 00:17:37]} 20. Re3 {[%clk 00:14:41]} {[%emt 00:01:32]}
exf3 {[%clk 00:17:37]} {[%emt 00:00:05]} 21. Rxf3 {[%clk 00:14:41]} {[%emt
00:00:05]} Rxf3+ {[%clk 00:17:38]} {[%emt 00:00:04]} 22. Qxf3 {[%clk 00:14:42]}
{[%emt 00:00:04]} Qf8 {[%clk 00:17:16]} {[%emt 00:00:27]} 23. Nb5 {[%clk
00:14:34]} {[%emt 00:00:14]} Qxf3+ {[%clk 00:17:12]} {[%emt 00:00:08]} 24. Kxf3
{[%clk 00:14:37]} Ne5+ {[%clk 00:17:16]} 25. Kg2 {[%clk 00:14:32]} {[%emt
00:00:13]} Rc8 {[%clk 00:17:09]} {[%emt 00:00:13]} 26. Rc1 {[%clk 00:14:19]}
{[%emt 00:00:17]} Kf7 {[%clk 00:17:02]} {[%emt 00:00:12]} 27. c5 {[%clk
00:13:52]} {[%emt 00:00:32]} Nd3 {[%clk 00:16:28]} {[%emt 00:00:40]} 28. Rc3
{[%clk 00:13:53]} {[%emt 00:00:03]} Nxb4 {[%clk 00:16:25]} {[%emt 00:00:08]} 29.
cxd6 {[%clk 00:13:53]} {[%emt 00:00:04]} c6 {[%clk 00:16:28]} {[%emt 00:00:04]}
30. d7 {[%clk 00:13:13]} {[%emt 00:00:44]} Rd8 {[%clk 00:16:04]} {[%emt
00:00:28]} 31. Nd6+ {[%clk 00:13:16]} {[%emt 00:00:04]} Ke7 {[%clk 00:15:51]}
{[%emt 00:00:16]} 32. Nxb7 {[%clk 00:13:18]} {[%emt 00:00:03]} Rxd7 {[%clk
00:15:53]} {[%emt 00:00:03]} 33. Nc5 {[%clk 00:12:53]} {[%emt 00:00:32]} Rd2+
{[%clk 00:15:37]} {[%emt 00:00:21]} 34. Kf3 {[%clk 00:12:27]} {[%emt 00:00:30]}
Nd5 {[%clk 00:15:17]} {[%emt 00:00:25]} 35. Ra3 {[%clk 00:12:14]} {[%emt
00:00:17]} Rc2 {[%clk 00:15:06]} {[%emt 00:00:16]} 36. Ne4 {[%clk 00:11:55]}
{[%emt 00:00:25]} Ke6 {[%clk 00:14:49]} {[%emt 00:00:22]} 37. a5 {[%clk
00:11:47]} {[%emt 00:00:13]} Kd7 {[%clk 00:14:47]} {[%emt 00:00:07]} 38. a6
{[%clk 00:11:41]} {[%emt 00:00:11]} Nb6 {[%clk 00:14:33]} {[%emt 00:00:17]} 39.
a7 {[%clk 00:11:41]} {[%emt 00:00:08]} Na8 {[%clk 00:14:36]} 40. Rb3 {[%clk
00:11:29]} {[%emt 00:00:17]} Ra2 {[%clk 00:14:26]} {[%emt 00:00:14]} 41. Rb7+
{[%clk 00:11:34]} Kc8 {[%clk 00:14:13]} {[%emt 00:00:20]} 42. Rb8+ {[%clk
00:11:36]} {[%emt 00:00:03]} Kc7 {[%clk 00:14:01]} {[%emt 00:00:16]} 43. Rxa8
{[%clk 00:11:40]} {[%emt 00:00:01]} Ra3+ {[%clk 00:14:03]} {[%emt 00:00:03]} 44.
Kg4 {[%clk 00:11:24]} {[%emt 00:00:20]} Ra4 {[%clk 00:14:04]} {[%emt 00:00:05]}
45. Rg8 {[%clk 00:10:55]} {[%emt 00:00:35]} Rxa7 {[%clk 00:13:49]} {[%emt
00:00:20]} 46. Rxg7+ {[%clk 00:10:58]} Kb6 {[%clk 00:13:53]} 47. Rxa7 {[%clk
00:10:59]} {[%emt 00:00:05]} Kxa7 {[%clk 00:13:56]} {[%emt 00:00:01]} 48. Kh5
{[%clk 00:11:04]} Kb6 {[%clk 00:14:00]} 49. Kxh6 c5 {[%emt 00:00:04]} 50. Nxc5
{[%clk 00:11:11]} {[%emt 00:00:01]} Kxc5 {[%clk 00:14:07]} {[%emt 00:00:12]} 51.
g4 {[%clk 00:11:15]} {[%emt 00:00:03]} Kd6 {[%clk 00:14:10]} {[%emt 00:00:34]}
52. g5 {[%clk 00:11:18]} {[%emt 00:00:01]} Ke7 {[%clk 00:14:14]} 53. g6 {[%clk
00:11:22]} Kf8 {[%clk 00:14:18]} 54. Kh7 {[%clk 00:11:26]} 1-0

[Event "Nové Hrady - Rapid A"]
[Site "Nové Hrady, Czech Republic"]
[Date "2023.08.12"]
[Round "2.7"]
[White "Slabý, Martin"]
[Black "Drda, Štěpán"]
[Result "0-1"]
[TimeControl "2x20min+5s"]
[WhiteFideId "23713593"]
[BlackFideId "23731567"]
[WhiteElo "1309"]
[BlackElo "1582"]

1. g4 {[%clk 00:20:07]} {[%emt 00:00:03]} d5 {[%emt 00:00:15]} 2. Bg2 {[%emt
00:00:05]} Bxg4 {[%clk 00:19:27]} {[%emt 00:00:22]} 3. c4 {[%clk 00:20:03]}
{[%emt 00:00:10]} Nf6 {[%clk 00:18:33]} {[%emt 00:00:59]} 4. Qb3 {[%clk
00:19:20]} {[%emt 00:00:49]} b6 {[%clk 00:17:20]} {[%emt 00:01:17]} 5. cxd5
{[%clk 00:18:54]} {[%emt 00:00:30]} Qd6 {[%clk 00:17:22]} {[%emt 00:00:04]} 6.
Nc3 {[%clk 00:17:59]} {[%emt 00:00:59]} a6 {[%clk 00:17:09]} {[%emt 00:00:19]}
7. d3 {[%clk 00:16:27]} {[%emt 00:01:36]} Nbd7 {[%clk 00:16:37]} {[%emt
00:00:38]} 8. e4 {[%clk 00:15:26]} {[%emt 00:01:06]} e5 {[%clk 00:13:28]}
{[%emt 00:03:14]} 9. Nge2 {[%clk 00:14:08]} {[%emt 00:01:23]} Nc5 {[%clk
00:12:58]} {[%emt 00:00:36]} 10. Qd1 {[%clk 00:12:50]} {[%emt 00:01:23]} Nh5
{[%clk 00:10:27]} {[%emt 00:02:35]} 11. O-O {[%clk 00:10:55]} {[%emt 00:02:00]}
Qg6 {[%clk 00:09:34]} {[%emt 00:00:57]} 12. Kh1 {[%clk 00:08:22]} {[%emt
00:02:39]} Bd6 {[%clk 00:07:33]} {[%emt 00:02:06]} 13. Rg1 {[%clk 00:07:28]}
{[%emt 00:00:58]} Qf6 {[%clk 00:06:20]} {[%emt 00:01:19]} 14. Be3 {[%clk
00:05:45]} {[%emt 00:01:48]} g5 {[%clk 00:04:47]} {[%emt 00:01:38]} 15. Qd2
{[%clk 00:04:23]} {[%emt 00:01:27]} Nf4 {[%clk 00:04:04]} {[%emt 00:00:48]} 16.
Bxf4 {[%clk 00:04:12]} {[%emt 00:00:16]} exf4 {[%clk 00:03:43]} {[%emt
00:00:27]} 17. f3 {[%clk 00:03:19]} {[%emt 00:00:57]} Qh6 {[%clk 00:02:41]}
{[%emt 00:01:06]} 18. fxg4 {[%clk 00:02:00]} {[%emt 00:01:25]} f3 {[%clk
00:02:39]} {[%emt 00:00:07]} 19. Ng3 {[%clk 00:01:14]} {[%emt 00:00:51]} Bxg3
{[%clk 00:02:05]} {[%emt 00:00:39]} 20. Bxf3 {[%clk 00:01:13]} {[%emt
00:00:06]} Bf4 {[%clk 00:02:05]} {[%emt 00:00:05]} 21. Qg2 {[%clk 00:00:21]}
{[%emt 00:00:58]} Nxd3 {[%clk 00:01:44]} {[%emt 00:00:25]} 22. Rad1 {[%clk
00:00:10]} {[%emt 00:00:15]} Ne5 {[%clk 00:01:38]} {[%emt 00:00:12]} 23. d6
{[%clk 00:00:00]} {[%emt 00:00:11]} 0-1

[Event "Nové Hrady - Rapid A"]
[Site "Nové Hrady, Czech Republic"]
[Date "2023.08.12"]
[Round "3.1"]
[White "Pochinkov, Andrey"]
[Black "Půlpán, Jakub"]
[Result "0-1"]
[TimeControl "2x20min+5s"]
[WhiteFideId "4146387"]
[BlackFideId "302759"]
[WhiteElo "2052"]
[BlackElo "2515"]

1. Nf3 {[%clk 00:20:07]} {[%emt 00:00:02]} d5 {[%clk 00:20:07]} {[%emt
00:00:04]} 2. d4 {[%clk 00:20:03]} {[%emt 00:00:09]} Nf6 {[%clk 00:20:09]}
{[%emt 00:00:03]} 3. e3 {[%clk 00:20:07]} c5 {[%clk 00:19:59]} {[%emt
00:00:16]} 4. c3 {[%clk 00:20:05]} {[%emt 00:00:07]} Nbd7 {[%clk 00:19:44]}
{[%emt 00:00:20]} 5. Bd3 {[%clk 00:20:07]} {[%emt 00:00:03]} g6 {[%clk
00:19:28]} {[%emt 00:00:21]} 6. O-O {[%clk 00:20:08]} {[%emt 00:00:04]} Bg7
{[%clk 00:19:31]} {[%emt 00:00:02]} 7. Nbd2 {[%clk 00:20:10]} {[%emt 00:00:02]}
O-O {[%clk 00:19:34]} {[%emt 00:00:03]} 8. Re1 {[%clk 00:20:05]} {[%emt
00:00:10]} Qc7 {[%clk 00:18:53]} {[%emt 00:00:46]} 9. e4 {[%clk 00:20:05]}
{[%emt 00:00:05]} dxe4 {[%clk 00:18:55]} {[%emt 00:00:03]} 10. Nxe4 {[%clk
00:20:08]} {[%emt 00:00:02]} Nxe4 {[%clk 00:18:59]} {[%emt 00:00:02]} 11. Bxe4
{[%clk 00:20:08]} {[%emt 00:00:04]} Nf6 {[%clk 00:19:02]} {[%emt 00:00:02]} 12.
Bd3 {[%clk 00:19:42]} {[%emt 00:00:31]} b6 {[%clk 00:17:53]} {[%emt 00:01:15]}
13. Qe2 {[%clk 00:19:24]} {[%emt 00:00:22]} e6 {[%clk 00:17:42]} {[%emt
00:00:16]} 14. Bg5 {[%clk 00:18:03]} {[%emt 00:01:25]} Nd7 {[%clk 00:15:04]}
{[%emt 00:02:44]} 15. Bh4 {[%clk 00:16:03]} {[%emt 00:02:05]} Bb7 {[%clk
00:15:02]} {[%emt 00:00:07]} 16. Bg3 {[%clk 00:16:03]} {[%emt 00:00:03]} Qc8
{[%clk 00:14:55]} {[%emt 00:00:14]} 17. Be4 {[%clk 00:15:12]} {[%emt 00:00:56]}
Nf6 {[%clk 00:13:52]} {[%emt 00:01:08]} 18. Bxb7 {[%clk 00:15:10]} {[%emt
00:00:07]} Qxb7 {[%clk 00:13:56]} 19. Be5 {[%clk 00:15:00]} {[%emt 00:00:15]}
Rfc8 {[%clk 00:13:28]} {[%emt 00:00:34]} 20. Rad1 {[%clk 00:14:51]} {[%emt
00:00:14]} a5 {[%clk 00:12:14]} {[%emt 00:01:19]} 21. Nd2 {[%clk 00:14:03]}
{[%emt 00:00:52]} Rd8 {[%clk 00:10:15]} {[%emt 00:02:06]} 22. a4 {[%clk
00:12:27]} {[%emt 00:01:40]} Rac8 {[%clk 00:08:59]} {[%emt 00:01:22]} 23. Nc4
{[%clk 00:12:13]} {[%emt 00:00:18]} Qc6 {[%clk 00:08:09]} {[%emt 00:00:55]} 24.
dxc5 {[%clk 00:10:12]} {[%emt 00:02:06]} Rxd1 {[%clk 00:08:03]} {[%emt
00:00:12]} 25. Rxd1 {[%clk 00:09:55]} {[%emt 00:00:20]} Qxc5 {[%clk 00:07:56]}
{[%emt 00:00:13]} 26. Nd6 {[%clk 00:09:44]} {[%emt 00:00:16]} Rd8 {[%clk
00:07:41]} {[%emt 00:00:20]} 27. Rd4 {[%clk 00:08:24]} {[%emt 00:01:25]} Rf8
{[%clk 00:03:23]} {[%emt 00:04:23]} 28. b4 {[%clk 00:06:49]} {[%emt 00:01:40]}
Qxc3 {[%clk 00:02:45]} {[%emt 00:00:43]} 29. Rc4 {[%clk 00:05:07]} {[%emt
00:01:46]} Qb3 {[%clk 00:02:35]} {[%emt 00:00:15]} 30. b5 {[%clk 00:04:15]}
{[%emt 00:00:58]} Ne8 {[%clk 00:01:43]} {[%emt 00:00:57]} 31. f4 {[%clk
00:03:00]} {[%emt 00:01:20]} Nxd6 {[%clk 00:01:26]} {[%emt 00:00:23]} 32. Bxd6
{[%clk 00:02:58]} {[%emt 00:00:07]} Rd8 {[%clk 00:01:30]} 33. Be5 {[%clk
00:02:31]} {[%emt 00:00:30]} Bf8 {[%clk 00:00:40]} {[%emt 00:00:55]} 34. h3
{[%clk 00:02:29]} {[%emt 00:00:08]} Bc5+ {[%clk 00:00:32]} {[%emt 00:00:13]} 35.
Kh2 {[%emt 00:00:23]} Rd1 {[%emt 00:00:57]} 36. Bc3 {[%clk 00:01:38]} {[%emt
00:00:03]} Rd5 {[%emt 00:00:43]} 37. g4 {[%clk 00:01:08]} {[%emt 00:00:02]} Qb1
{[%emt 00:00:32]} 38. Kg3 {[%clk 00:00:43]} {[%emt 00:00:05]} Qg1+ {[%clk
00:00:12]} {[%emt 00:00:01]} 39. Kh4 {[%clk 00:00:46]} Qf2+ {[%clk 00:00:14]}
{[%emt 00:00:05]} 0-1

[Event "Nové Hrady - Rapid A"]
[Site "Nové Hrady, Czech Republic"]
[Date "2023.08.12"]
[Round "3.2"]
[White "Babula, Milan"]
[Black "Steinbauer, Sebastián"]
[Result "1-0"]
[TimeControl "2x20min+5s"]
[WhiteFideId "300632"]
[BlackFideId "399272"]
[WhiteElo "2212"]
[BlackElo "1833"]

1. e4 {[%clk 00:20:05]} {[%emt 00:05:21]} e5 {[%clk 00:20:09]} {[%emt
00:00:10]} 2. Nc3 {[%clk 00:20:11]} {[%emt 00:00:03]} Nf6 {[%clk 00:20:11]}
{[%emt 00:00:03]} 3. g3 {[%clk 00:20:15]} d5 {[%clk 00:20:07]} {[%emt
00:00:09]} 4. exd5 {[%clk 00:20:12]} {[%emt 00:00:08]} Nxd5 {[%clk 00:20:11]}
{[%emt 00:00:01]} 5. Bg2 {[%clk 00:20:15]} {[%emt 00:00:03]} c6 {[%clk
00:19:55]} {[%emt 00:00:20]} 6. Nge2 {[%clk 00:20:16]} {[%emt 00:00:04]} Bg4
{[%clk 00:19:43]} {[%emt 00:00:17]} 7. h3 {[%clk 00:20:12]} {[%emt 00:00:09]}
Nxc3 {[%clk 00:19:41]} {[%emt 00:00:07]} 8. bxc3 {[%clk 00:20:15]} {[%emt
00:00:02]} Bh5 {[%clk 00:19:42]} {[%emt 00:00:04]} 9. g4 {[%clk 00:19:19]}
{[%emt 00:01:01]} Bg6 {[%clk 00:19:46]} 10. Ng3 {[%clk 00:19:22]} {[%emt
00:00:03]} Nd7 {[%clk 00:18:47]} {[%emt 00:01:04]} 11. d3 {[%clk 00:19:11]}
{[%emt 00:00:15]} Nb6 {[%clk 00:18:36]} {[%emt 00:00:16]} 12. O-O {[%clk
00:18:52]} {[%emt 00:00:24]} Qd7 {[%clk 00:17:09]} {[%emt 00:01:32]} 13. Re1
{[%clk 00:18:23]} {[%emt 00:00:34]} f6 {[%clk 00:17:00]} {[%emt 00:00:14]} 14.
a4 {[%clk 00:17:24]} {[%emt 00:01:04]} Nd5 {[%clk 00:16:49]} {[%emt 00:00:16]}
15. c4 {[%clk 00:16:25]} {[%emt 00:01:03]} Nc7 {[%clk 00:16:53]} 16. a5 {[%clk
00:15:25]} {[%emt 00:01:08]} Ne6 {[%clk 00:16:50]} {[%emt 00:00:08]} 17. a6
{[%clk 00:15:11]} {[%emt 00:00:19]} b6 {[%clk 00:16:00]} {[%emt 00:00:54]} 18.
Be3 {[%clk 00:15:07]} {[%emt 00:00:09]} Rc8 {[%clk 00:15:46]} {[%emt 00:00:20]}
19. Qf3 {[%clk 00:14:42]} {[%emt 00:00:29]} Bb4 {[%clk 00:14:23]} {[%emt
00:01:28]} 20. Reb1 {[%clk 00:12:38]} {[%emt 00:02:09]} Bc3 {[%clk 00:13:32]}
{[%emt 00:00:56]} 21. Ra3 {[%clk 00:12:39]} {[%emt 00:00:04]} Bd4 {[%clk
00:13:35]} {[%emt 00:00:02]} 22. Nf5 {[%clk 00:10:46]} {[%emt 00:01:57]} Bxe3
{[%clk 00:12:28]} {[%emt 00:01:13]} 23. fxe3 {[%clk 00:10:40]} {[%emt
00:00:11]} Ng5 {[%clk 00:12:24]} {[%emt 00:00:09]} 24. Qf2 {[%clk 00:10:29]}
{[%emt 00:00:17]} h5 {[%clk 00:10:58]} {[%emt 00:01:30]} 25. c5 {[%clk
00:06:59]} {[%emt 00:03:35]} hxg4 {[%clk 00:09:16]} {[%emt 00:01:47]} 26. Nd6+
{[%clk 00:05:25]} {[%emt 00:01:39]} Kf8 {[%clk 00:09:20]} {[%emt 00:00:01]} 27.
Nxc8 {[%clk 00:05:28]} Qxc8 {[%clk 00:07:46]} {[%emt 00:01:41]} 28. cxb6 {[%clk
00:04:51]} {[%emt 00:00:42]} axb6 {[%clk 00:04:38]} {[%emt 00:03:13]} 29. a7
{[%clk 00:04:51]} {[%emt 00:00:05]} Qa8 {[%clk 00:04:00]} {[%emt 00:00:44]} 30.
Rxb6 {[%clk 00:04:38]} {[%emt 00:00:17]} Ke7 {[%clk 00:04:04]} 31. h4 {[%clk
00:03:31]} {[%emt 00:01:13]} Nh3+ {[%clk 00:03:55]} {[%emt 00:00:14]} 32. Bxh3
{[%clk 00:03:35]} {[%emt 00:00:02]} gxh3 {[%clk 00:03:58]} 33. Kh2 {[%clk
00:03:00]} {[%emt 00:00:41]} Bf7 {[%clk 00:03:21]} {[%emt 00:00:42]} 34. Qg3
{[%clk 00:02:42]} {[%emt 00:00:23]} g5 {[%clk 00:03:10]} {[%emt 00:00:17]} 35.
hxg5 {[%clk 00:02:08]} {[%emt 00:00:38]} f5 {[%clk 00:02:54]} {[%emt 00:00:20]}
36. Qxe5+ {[%clk 00:02:08]} {[%emt 00:00:05]} Be6 {[%clk 00:02:55]} {[%emt
00:00:05]} 37. Qf6+ {[%clk 00:01:15]} {[%emt 00:00:57]} Kd6 {[%clk 00:02:55]}
{[%emt 00:00:06]} 38. Raa6 {[%clk 00:01:13]} {[%emt 00:00:07]} Rc8 {[%clk
00:02:49]} {[%emt 00:00:11]} 39. Qd4+ {[%clk 00:01:12]} {[%emt 00:00:06]} Ke7
{[%clk 00:02:50]} {[%emt 00:00:04]} 40. Qc5+ {[%clk 00:01:11]} {[%emt
00:00:06]} Kf7 {[%clk 00:02:46]} {[%emt 00:00:09]} 41. Rxc6 {[%clk 00:00:53]}
{[%emt 00:00:23]} Qb7 {[%clk 00:02:50]} 42. g6+ {[%clk 00:00:49]} {[%emt
00:00:09]} Kg7 {[%clk 00:02:46]} {[%emt 00:00:09]} 43. Qe5+ {[%clk 00:00:52]}
{[%emt 00:00:03]} 1-0